[Event "NJSK 2022 Meisjes A&B"]
[Site "Almelo, Netherlands"]
[Date "2022.05.06"]
[Round "6.1"]
[White "Cordes, Jule"]
[Black "Martinez, Sara"]
[Result "1-0"]
[TimeControl "90min/40moves + 30min + 30sec/move"]
[WhiteElo "1802"]
[BlackElo "1651"]

1. d4 {[%clk 01:30:56]} {[%emt 00:00:04]} d5 {[%clk 01:30:56]} {[%emt
00:00:06]} 2. c4 {[%clk 01:31:15]} {[%emt 00:00:09]} e6 {[%clk 01:31:23]}
{[%emt 00:00:03]} 3. Nf3 {[%clk 01:31:22]} {[%emt 00:00:23]} c5 {[%clk
01:31:19]} {[%emt 00:00:34]} 4. cxd5 {[%clk 01:31:30]} {[%emt 00:00:21]} exd5
{[%clk 01:31:40]} {[%emt 00:00:09]} 5. Nc3 {[%clk 01:31:42]} {[%emt 00:00:18]}
Nc6 {[%clk 01:31:17]} {[%emt 00:00:53]} 6. dxc5 {[%clk 01:31:26]} {[%emt
00:00:46]} d4 {[%clk 01:28:15]} {[%emt 00:03:32]} 7. Na4 {[%clk 01:31:27]}
{[%emt 00:00:30]} Bxc5 {[%clk 01:26:46]} {[%emt 00:01:59]} 8. Nxc5 {[%clk
01:30:53]} {[%emt 00:01:04]} Qa5+ {[%clk 01:26:25]} {[%emt 00:00:51]} 9. Bd2
{[%clk 01:31:13]} {[%emt 00:00:09]} Qxc5 {[%clk 01:26:48]} {[%emt 00:00:06]} 10.
Rc1 {[%clk 01:31:10]} {[%emt 00:00:34]} Qb6 {[%clk 01:19:09]} {[%emt 00:08:10]}
11. e3 {[%clk 01:24:29]} {[%emt 00:07:10]} Nf6 {[%clk 01:12:57]} {[%emt
00:06:42]} 12. Qa4 {[%clk 01:20:28]} {[%emt 00:04:31]} dxe3 {[%clk 01:01:36]}
{[%emt 00:11:52]} 13. Bxe3 {[%clk 01:16:43]} {[%emt 00:04:15]} Qb4+ {[%clk
00:57:06]} {[%emt 00:04:59]} 14. Qxb4 {[%clk 01:16:41]} {[%emt 00:00:32]} Nxb4
{[%clk 00:57:32]} {[%emt 00:00:04]} 15. Bc4 {[%clk 00:55:57]} {[%emt 00:21:14]}
O-O {[%clk 00:52:30]} {[%emt 00:05:32]} 16. O-O {[%clk 00:55:35]} {[%emt
00:00:51]} Nbd5 {[%clk 00:48:07]} {[%emt 00:04:54]} 17. Bg5 {[%clk 00:47:02]}
{[%emt 00:09:02]} h6 {[%clk 00:36:59]} {[%emt 00:11:38]} 18. Bh4 {[%clk
00:35:23]} {[%emt 00:12:09]} Be6 {[%clk 00:31:10]} {[%emt 00:06:20]} 19. Nd4
{[%clk 00:31:58]} {[%emt 00:03:55]} Nf4 {[%clk 00:29:42]} {[%emt 00:01:57]} 20.
Bxf6 {[%clk 00:23:43]} {[%emt 00:08:46]} gxf6 {[%clk 00:29:30]} {[%emt
00:00:42]} 21. Nxe6 {[%clk 00:17:12]} {[%emt 00:07:00]} fxe6 {[%clk 00:28:27]}
{[%emt 00:01:33]} 22. g3 {[%clk 00:15:27]} {[%emt 00:02:15]} Nd5 {[%clk
00:22:50]} {[%emt 00:06:07]} 23. Rfe1 {[%clk 00:15:23]} {[%emt 00:00:34]} Kf7
{[%clk 00:22:47]} {[%emt 00:00:34]} 24. Bxd5 {[%clk 00:13:16]} {[%emt
00:02:37]} exd5 {[%clk 00:23:11]} {[%emt 00:00:05]} 25. Rc7+ {[%clk 00:13:33]}
{[%emt 00:00:13]} Kg6 {[%clk 00:23:32]} {[%emt 00:00:09]} 26. Rxb7 {[%clk
00:13:14]} {[%emt 00:00:49]} Rfd8 {[%clk 00:23:51]} {[%emt 00:00:12]} 27. Kf1
{[%clk 00:09:49]} {[%emt 00:03:55]} a5 {[%clk 00:21:56]} {[%emt 00:02:25]} 28.
Ke2 {[%clk 00:08:26]} {[%emt 00:01:52]} Rac8 {[%clk 00:17:13]} {[%emt
00:05:13]} 29. Kd3 {[%clk 00:08:34]} {[%emt 00:00:22]} Rc5 {[%clk 00:15:47]}
{[%emt 00:01:56]} 30. f3 {[%clk 00:06:58]} {[%emt 00:02:06]} h5 {[%clk
00:10:31]} {[%emt 00:05:46]} 31. h4 {[%clk 00:05:57]} {[%emt 00:01:31]} d4
{[%clk 00:10:03]} {[%emt 00:00:58]} 32. g4 {[%clk 00:04:58]} {[%emt 00:01:29]}
Re5 {[%clk 00:06:18]} {[%emt 00:04:15]} 33. Rxe5 {[%clk 00:04:08]} {[%emt
00:01:20]} fxe5 {[%clk 00:06:44]} {[%emt 00:00:04]} 34. Rb6+ {[%clk 00:03:29]}
{[%emt 00:01:09]} Kf7 {[%clk 00:06:35]} {[%emt 00:00:40]} 35. Rb5 {[%clk
00:02:11]} {[%emt 00:01:48]} hxg4 {[%clk 00:02:41]} {[%emt 00:04:23]} 36. fxg4
{[%clk 00:02:40]} {[%emt 00:00:01]} Kf6 {[%clk 00:02:49]} {[%emt 00:00:23]} 37.
Rxa5 {[%clk 00:02:52]} {[%emt 00:00:18]} Rh8 {[%clk 00:03:01]} {[%emt
00:00:18]} 38. Ra6+ {[%clk 00:03:12]} {[%emt 00:00:10]} Kf7 {[%clk 00:03:22]}
{[%emt 00:00:08]} 39. Ra7+ {[%clk 00:01:59]} {[%emt 00:01:43]} Kf6 {[%clk
00:03:46]} {[%emt 00:00:06]} 40. Ra6+ {[%clk 00:02:22]} {[%emt 00:00:06]} Kf7
{[%clk 00:04:08]} {[%emt 00:00:08]} 41. h5 {[%clk 00:23:47]} {[%emt 00:09:04]}
Rg8 {[%clk 00:31:15]} {[%emt 00:03:23]} 42. Ke4 {[%clk 00:21:13]} {[%emt
00:03:04]} Rxg4+ {[%clk 00:28:42]} {[%emt 00:03:04]} 43. Kxe5 {[%clk 00:21:23]}
{[%emt 00:00:19]} d3 {[%clk 00:28:52]} {[%emt 00:00:20]} 44. Rd6 {[%clk
00:20:39]} {[%emt 00:01:13]} Rg2 {[%clk 00:26:12]} {[%emt 00:03:10]} 45. Rxd3
{[%clk 00:18:38]} {[%emt 00:02:31]} Rxb2 {[%clk 00:26:36]} {[%emt 00:00:06]} 46.
a4 {[%clk 00:14:05]} {[%emt 00:05:03]} Ra2 {[%clk 00:24:15]} {[%emt 00:02:52]}
47. Rd7+ {[%clk 00:12:33]} {[%emt 00:02:02]} Ke8 {[%clk 00:23:52]} {[%emt
00:00:52]} 48. Ra7 {[%clk 00:12:19]} {[%emt 00:00:44]} Rh2 {[%clk 00:23:09]}
{[%emt 00:01:13]} 49. Ke6 {[%clk 00:12:34]} {[%emt 00:00:14]} Kd8 {[%clk
00:23:02]} {[%emt 00:00:38]} 50. Rd7+ {[%clk 00:12:12]} {[%emt 00:00:52]} Kc8
{[%clk 00:18:50]} {[%emt 00:04:41]} 51. Rd5 {[%clk 00:12:18]} {[%emt 00:00:24]}
Kc7 {[%clk 00:18:24]} {[%emt 00:00:56]} 52. Kf6 {[%clk 00:12:09]} {[%emt
00:00:38]} Kc6 {[%clk 00:17:12]} {[%emt 00:01:43]} 53. Rg5 {[%clk 00:11:33]}
{[%emt 00:01:05]} Kd6 {[%clk 00:15:22]} {[%emt 00:02:20]} 54. Kg7 {[%clk
00:10:24]} {[%emt 00:01:39]} Ke6 {[%clk 00:12:57]} {[%emt 00:02:55]} 55. h6
{[%clk 00:07:42]} {[%emt 00:03:11]} Rd2 {[%clk 00:12:40]} {[%emt 00:00:46]} 56.
h7 {[%clk 00:07:00]} {[%emt 00:01:13]} Rd7+ {[%clk 00:13:02]} {[%emt 00:00:08]}
57. Kg6 {[%clk 00:07:00]} {[%emt 00:00:30]} Rd8 {[%clk 00:13:25]} {[%emt
00:00:07]} 58. Rh5 {[%clk 00:07:13]} {[%emt 00:00:16]} 1-0

[Event "NJSK 2022 Meisjes A&B"]
[Site "Almelo, Netherlands"]
[Date "2022.05.06"]
[Round "6.2"]
[White "Verheij, Dana"]
[Black "Honkoop, Stella"]
[Result "1/2-1/2"]
[TimeControl "90min/40moves + 30min + 30sec/move"]
[WhiteElo "1828"]
[BlackElo "1711"]

1. e4 {[%clk 01:30:56]} {[%emt 00:00:02]} c5 {[%clk 01:30:57]} {[%emt
00:00:05]} 2. c3 {[%clk 01:31:20]} {[%emt 00:00:06]} Nf6 {[%clk 01:31:22]}
{[%emt 00:00:07]} 3. e5 {[%clk 01:31:44]} {[%emt 00:00:05]} Nd5 {[%clk
01:31:47]} {[%emt 00:00:04]} 4. Nf3 {[%clk 01:32:08]} {[%emt 00:00:06]} d6
{[%clk 01:32:09]} {[%emt 00:00:10]} 5. exd6 {[%clk 01:32:15]} {[%emt 00:00:21]}
e6 {[%clk 01:32:36]} {[%emt 00:00:04]} 6. g3 {[%clk 01:32:38]} {[%emt
00:00:07]} b6 {[%clk 01:33:03]} {[%emt 00:00:04]} 7. Bg2 {[%clk 01:32:49]}
{[%emt 00:00:18]} Bb7 {[%clk 01:33:31]} {[%emt 00:00:03]} 8. O-O {[%clk
01:32:40]} {[%emt 00:00:40]} Bxd6 {[%clk 01:33:55]} {[%emt 00:00:05]} 9. d4
{[%clk 01:31:52]} {[%emt 00:01:18]} Nc6 {[%clk 01:30:23]} {[%emt 00:04:02]} 10.
Na3 {[%clk 01:28:22]} {[%emt 00:03:59]} O-O {[%clk 01:27:11]} {[%emt 00:03:42]}
11. Re1 {[%clk 01:26:19]} {[%emt 00:02:34]} Rc8 {[%clk 01:16:58]} {[%emt
00:10:44]} 12. Nc4 {[%clk 01:23:00]} {[%emt 00:03:48]} Be7 {[%clk 01:11:47]}
{[%emt 00:05:41]} 13. dxc5 {[%clk 01:12:07]} {[%emt 00:11:23]} Bxc5 {[%clk
01:10:46]} {[%emt 00:01:30]} 14. Be3 {[%clk 01:04:40]} {[%emt 00:07:58]} Nxe3
{[%clk 01:00:02]} {[%emt 00:11:13]} 15. Nxe3 {[%clk 01:05:03]} {[%emt
00:00:09]} Qc7 {[%clk 00:55:05]} {[%emt 00:05:27]} 16. Ng5 {[%clk 00:58:09]}
{[%emt 00:07:22]} h6 {[%clk 00:49:17]} {[%emt 00:06:19]} 17. Ne4 {[%clk
00:57:55]} {[%emt 00:00:42]} Rfd8 {[%clk 00:47:26]} {[%emt 00:02:23]} 18. Qe2
{[%clk 00:53:56]} {[%emt 00:04:29]} Be7 {[%clk 00:42:41]} {[%emt 00:05:15]} 19.
Nd2 {[%clk 00:42:24]} {[%emt 00:12:01]} Ne5 {[%clk 00:34:39]} {[%emt 00:08:33]}
20. Nb3 {[%clk 00:29:07]} {[%emt 00:13:48]} Rd7 {[%clk 00:19:48]} {[%emt
00:15:21]} 21. Rad1 {[%clk 00:15:54]} {[%emt 00:13:42]} Rcd8 {[%clk 00:18:39]}
{[%emt 00:01:40]} 22. Nd4 {[%clk 00:08:47]} {[%emt 00:07:37]} Bc5 {[%clk
00:14:04]} {[%emt 00:05:06]} 23. Nec2 {[%clk 00:08:40]} {[%emt 00:00:37]} Bxg2
{[%clk 00:11:34]} {[%emt 00:03:00]} 24. Kxg2 {[%clk 00:08:50]} {[%emt
00:00:20]} Qb7+ {[%clk 00:09:02]} {[%emt 00:03:02]} 25. Qe4 {[%clk 00:07:38]}
{[%emt 00:01:42]} Qxe4+ {[%clk 00:08:48]} {[%emt 00:00:44]} 26. Rxe4 {[%clk
00:08:07]} {[%emt 00:00:01]} Ng6 {[%clk 00:08:48]} {[%emt 00:00:30]} 27. Rde1
{[%clk 00:08:02]} {[%emt 00:00:33]} Ne7 {[%clk 00:07:44]} {[%emt 00:01:36]} 28.
g4 {[%clk 00:05:40]} {[%emt 00:02:52]} Ng6 {[%clk 00:06:27]} {[%emt 00:01:47]}
29. f4 {[%clk 00:04:59]} {[%emt 00:01:11]} Ne7 {[%clk 00:03:59]} {[%emt
00:02:58]} 30. Kf3 {[%clk 00:04:22]} {[%emt 00:01:06]} Kf8 {[%clk 00:03:16]}
{[%emt 00:01:14]} 31. h4 {[%clk 00:03:39]} {[%emt 00:01:12]} Ng6 {[%clk
00:02:54]} {[%emt 00:00:52]} 32. h5 {[%clk 00:03:51]} {[%emt 00:00:18]} Ne7
{[%clk 00:03:21]} {[%emt 00:00:04]} 33. Re5 {[%clk 00:03:35]} {[%emt 00:00:45]}
1/2-1/2

[Event "NJSK 2022 Meisjes A&B"]
[Site "Almelo, Netherlands"]
[Date "2022.05.06"]
[Round "6.3"]
[White "De Zoeten, Cato"]
[Black "Van Essen, Marieke"]
[Result "1-0"]
[TimeControl "90min/40moves + 30min + 30sec/move"]
[WhiteElo "1915"]
[BlackElo "1728"]

1. e4 {[%clk 01:30:57]} {[%emt 00:00:01]} e5 {[%clk 01:30:56]} {[%emt
00:00:05]} 2. Nf3 {[%clk 01:31:23]} {[%emt 00:00:04]} Nc6 {[%clk 01:31:22]}
{[%emt 00:00:05]} 3. Bb5 {[%clk 01:31:49]} {[%emt 00:00:07]} a6 {[%clk
01:31:46]} {[%emt 00:00:03]} 4. Ba4 {[%clk 01:32:15]} {[%emt 00:00:03]} Nf6
{[%clk 01:32:00]} {[%emt 00:00:17]} 5. O-O {[%clk 01:31:35]} {[%emt 00:01:10]}
Bc5 {[%clk 01:31:53]} {[%emt 00:00:37]} 6. c3 {[%clk 01:31:24]} {[%emt
00:00:40]} b5 {[%clk 01:26:05]} {[%emt 00:06:19]} 7. Bb3 {[%clk 01:31:03]}
{[%emt 00:00:51]} O-O {[%clk 01:26:02]} {[%emt 00:00:32]} 8. d4 {[%clk
01:30:42]} {[%emt 00:00:52]} exd4 {[%clk 01:25:43]} {[%emt 00:00:49]} 9. cxd4
{[%clk 01:31:05]} {[%emt 00:00:07]} Bb6 {[%clk 01:24:58]} {[%emt 00:01:15]} 10.
e5 {[%clk 01:31:06]} {[%emt 00:00:28]} Ne4 {[%clk 01:23:01]} {[%emt 00:02:28]}
11. Bd5 {[%clk 01:28:15]} {[%emt 00:03:22]} Nf6 {[%clk 01:18:33]} {[%emt
00:04:58]} 12. exf6 {[%clk 01:27:03]} {[%emt 00:01:41]} Qxf6 {[%clk 01:18:50]}
{[%emt 00:00:14]} 13. Nc3 {[%clk 01:21:51]} {[%emt 00:05:43]} Bb7 {[%clk
01:17:36]} {[%emt 00:01:44]} 14. Qd2 {[%clk 01:15:32]} {[%emt 00:06:48]} Rab8
{[%clk 01:15:04]} {[%emt 00:03:02]} 15. Rd1 {[%clk 01:12:09]} {[%emt 00:03:52]}
Na5 {[%clk 01:08:36]} {[%emt 00:07:00]} 16. Bxb7 {[%clk 01:11:51]} {[%emt
00:00:48]} Nxb7 {[%clk 01:08:54]} {[%emt 00:00:12]} 17. Nd5 {[%clk 01:11:34]}
{[%emt 00:00:46]} Qe6 {[%clk 01:06:04]} {[%emt 00:03:19]} 18. Nxb6 {[%clk
01:11:50]} {[%emt 00:00:15]} Qxb6 {[%clk 01:06:24]} {[%emt 00:00:10]} 19. Qd3
{[%clk 01:11:45]} {[%emt 00:00:36]} h6 {[%clk 01:05:25]} {[%emt 00:01:30]} 20.
Bf4 {[%clk 01:11:00]} {[%emt 00:01:14]} Rbe8 {[%clk 01:00:01]} {[%emt
00:05:54]} 21. Rac1 {[%clk 01:03:36]} {[%emt 00:07:54]} Nd6 {[%clk 00:59:15]}
{[%emt 00:01:16]} 22. Qc2 {[%clk 00:59:42]} {[%emt 00:04:24]} Rc8 {[%clk
00:53:55]} {[%emt 00:05:49]} 23. Qc5 {[%clk 00:58:50]} {[%emt 00:01:22]} Qa5
{[%clk 00:51:08]} {[%emt 00:03:17]} 24. Bxd6 {[%clk 00:54:10]} {[%emt
00:05:11]} cxd6 {[%clk 00:48:39]} {[%emt 00:03:00]} 25. Qxc8 {[%clk 00:54:32]}
{[%emt 00:00:07]} Rxc8 {[%clk 00:48:44]} {[%emt 00:00:25]} 26. Rxc8+ {[%clk
00:54:57]} Kh7 {[%clk 00:49:08]} {[%emt 00:00:11]} 27. a3 {[%clk 00:55:08]}
{[%emt 00:00:19]} b4 {[%clk 00:48:34]} {[%emt 00:01:04]} 28. axb4 {[%clk
00:54:10]} {[%emt 00:01:28]} Qxb4 {[%clk 00:48:49]} {[%emt 00:00:15]} 29. Rd2
{[%clk 00:53:48]} {[%emt 00:00:51]} g5 {[%clk 00:43:41]} {[%emt 00:05:39]} 30.
h3 {[%clk 00:53:41]} {[%emt 00:00:37]} f5 {[%clk 00:36:02]} {[%emt 00:08:08]}
31. Rdc2 {[%clk 00:52:19]} {[%emt 00:01:53]} g4 {[%clk 00:35:23]} {[%emt
00:01:09]} 32. hxg4 {[%clk 00:52:40]} {[%emt 00:00:09]} fxg4 {[%clk 00:35:48]}
{[%emt 00:00:05]} 33. R8c4 {[%clk 00:52:42]} {[%emt 00:00:27]} Qa5 {[%clk
00:34:42]} {[%emt 00:01:36]} 34. Nd2 {[%clk 00:51:59]} {[%emt 00:01:13]} Qa1+
{[%clk 00:33:13]} {[%emt 00:01:59]} 35. Nf1 {[%clk 00:51:01]} {[%emt 00:01:28]}
h5 {[%clk 00:32:50]} {[%emt 00:00:54]} 36. Rc7 {[%clk 00:49:39]} {[%emt
00:01:52]} Qa4 {[%clk 00:32:23]} {[%emt 00:00:56]} 37. Re2 {[%clk 00:48:23]}
{[%emt 00:01:46]} Qxd4 {[%clk 00:30:32]} {[%emt 00:02:22]} 38. Rxd7+ {[%clk
00:48:46]} {[%emt 00:00:07]} Kg6 {[%clk 00:30:45]} {[%emt 00:00:17]} 39. Re6+
{[%clk 00:48:58]} {[%emt 00:00:18]} Kg5 {[%clk 00:30:02]} {[%emt 00:01:12]} 40.
Rdxd6 {[%clk 00:49:14]} {[%emt 00:00:14]} Qxb2 {[%clk 00:30:00]} {[%emt
00:00:33]} 41. Rd5+ {[%clk 00:49:33]} {[%emt 00:00:10]} 1-0

[Event "NJSK 2022 Meisjes A&B"]
[Site "Almelo, Netherlands"]
[Date "2022.05.06"]
[Round "6.4"]
[White "Jonkman, Amelia"]
[Black "Den Heijer, Rolinde"]
[Result "0-1"]
[TimeControl "90min/40moves + 30min + 30sec/move"]
[WhiteElo "1552"]
[BlackElo "1754"]

1. d4 {[%clk 01:30:59]} {[%emt 00:00:01]} d5 {[%clk 01:30:56]} {[%emt
00:00:04]} 2. c4 {[%clk 01:31:19]} {[%emt 00:00:10]} e6 {[%clk 01:31:22]}
{[%emt 00:00:06]} 3. Nf3 {[%clk 01:31:28]} {[%emt 00:00:21]} c5 {[%clk
01:31:43]} {[%emt 00:00:07]} 4. Nc3 {[%clk 01:29:48]} {[%emt 00:02:11]} Nc6
{[%clk 01:30:45]} {[%emt 00:01:28]} 5. cxd5 {[%clk 01:22:20]} {[%emt 00:07:57]}
exd5 {[%clk 01:29:22]} {[%emt 00:01:53]} 6. dxc5 {[%clk 01:14:59]} {[%emt
00:07:51]} d4 {[%clk 01:28:40]} {[%emt 00:01:12]} 7. Nb5 {[%clk 01:07:38]}
{[%emt 00:07:51]} Qa5+ {[%clk 01:25:30]} {[%emt 00:03:39]} 8. Qd2 {[%clk
01:05:30]} {[%emt 00:02:39]} Qxb5 {[%clk 01:21:36]} {[%emt 00:04:23]} 9. Nxd4
{[%clk 01:00:45]} {[%emt 00:05:15]} Nxd4 {[%clk 01:18:20]} {[%emt 00:03:47]} 10.
Qxd4 {[%clk 01:00:38]} {[%emt 00:00:38]} Qxc5 {[%clk 01:17:20]} {[%emt
00:01:30]} 11. Qe4+ {[%clk 00:55:15]} {[%emt 00:05:53]} Be7 {[%clk 01:14:11]}
{[%emt 00:03:38]} 12. Bd2 {[%clk 00:47:28]} {[%emt 00:08:17]} Nf6 {[%clk
01:11:08]} {[%emt 00:03:33]} 13. Qd3 {[%clk 00:34:21]} {[%emt 00:13:37]} O-O
{[%clk 01:02:53]} {[%emt 00:08:45]} 14. Rc1 {[%clk 00:31:47]} {[%emt 00:03:05]}
Qb6 {[%clk 00:58:38]} {[%emt 00:04:45]} 15. b3 {[%clk 00:28:36]} {[%emt
00:03:42]} Bb4 {[%clk 00:54:36]} {[%emt 00:04:32]} 16. e3 {[%clk 00:22:04]}
{[%emt 00:07:02]} Rd8 {[%clk 00:49:02]} {[%emt 00:06:04]} 17. Qxd8+ {[%clk
00:12:12]} {[%emt 00:10:22]} Qxd8 {[%clk 00:49:21]} {[%emt 00:00:10]} 18. Bxb4
{[%clk 00:12:23]} {[%emt 00:00:20]} Be6 {[%clk 00:48:20]} {[%emt 00:01:31]} 19.
Be2 {[%clk 00:10:49]} {[%emt 00:02:04]} h6 {[%clk 00:45:44]} {[%emt 00:03:05]}
20. O-O {[%clk 00:09:53]} {[%emt 00:01:26]} Rc8 {[%clk 00:43:17]} {[%emt
00:02:57]} 21. Bf3 {[%clk 00:07:50]} {[%emt 00:02:33]} Rxc1 {[%clk 00:42:56]}
{[%emt 00:00:51]} 22. Rxc1 {[%clk 00:08:05]} {[%emt 00:00:16]} Qb6 {[%clk
00:42:05]} {[%emt 00:01:20]} 23. Bd2 {[%clk 00:05:18]} {[%emt 00:03:17]} Qa6
{[%clk 00:41:04]} {[%emt 00:01:31]} 24. Rc2 {[%clk 00:04:31]} {[%emt 00:01:16]}
Bf5 {[%clk 00:33:59]} {[%emt 00:07:36]} 25. Rb2 {[%clk 00:03:22]} {[%emt
00:01:39]} Qa3 {[%clk 00:33:54]} {[%emt 00:00:34]} 26. Bc1 {[%clk 00:02:58]}
{[%emt 00:00:54]} Qc5 {[%clk 00:33:59]} {[%emt 00:00:24]} 27. Bd2 {[%clk
00:02:41]} {[%emt 00:00:49]} Qe5 {[%clk 00:34:15]} {[%emt 00:00:14]} 28. Bc1
{[%clk 00:02:10]} {[%emt 00:01:01]} Qc3 {[%clk 00:34:29]} {[%emt 00:00:16]} 0-1

[Event "NJSK 2022 Meisjes A&B"]
[Site "Almelo, Netherlands"]
[Date "2022.05.06"]
[Round "6.5"]
[White "Tangarife Ramirez, Katja"]
[Black "Venema, Katja"]
[Result "1-0"]
[TimeControl "90min/40moves + 30min + 30sec/move"]
[WhiteElo "1623"]
[BlackElo "1692"]

1. d4 {[%clk 01:30:57]} {[%emt 00:00:04]} Nf6 {[%clk 01:30:42]} {[%emt
00:00:19]} 2. Nf3 {[%clk 01:31:02]} {[%emt 00:00:23]} d5 {[%clk 01:30:34]}
{[%emt 00:00:38]} 3. e3 {[%clk 01:30:55]} {[%emt 00:00:38]} Bg4 {[%clk
01:30:09]} {[%emt 00:00:55]} 4. c4 {[%clk 01:29:13]} {[%emt 00:02:11]} c6
{[%clk 01:28:54]} {[%emt 00:01:45]} 5. Nbd2 {[%clk 01:28:27]} {[%emt 00:01:16]}
e6 {[%clk 01:27:02]} {[%emt 00:02:22]} 6. Qb3 {[%clk 01:27:00]} {[%emt
00:01:57]} Qc7 {[%clk 01:25:48]} {[%emt 00:01:43]} 7. Bd3 {[%clk 01:25:45]}
{[%emt 00:01:45]} Be7 {[%clk 01:24:29]} {[%emt 00:01:49]} 8. O-O {[%clk
01:24:45]} {[%emt 00:01:30]} O-O {[%clk 01:23:36]} {[%emt 00:01:24]} 9. Ne5
{[%clk 01:22:47]} {[%emt 00:02:28]} Bh5 {[%clk 01:21:14]} {[%emt 00:02:52]} 10.
Re1 {[%clk 01:19:47]} {[%emt 00:03:30]} Nbd7 {[%clk 01:18:40]} {[%emt
00:03:04]} 11. Nxd7 {[%clk 01:18:24]} {[%emt 00:01:53]} Qxd7 {[%clk 01:18:22]}
{[%emt 00:00:49]} 12. cxd5 {[%clk 01:18:13]} {[%emt 00:00:40]} Nxd5 {[%clk
01:12:22]} {[%emt 00:06:30]} 13. Ne4 {[%clk 01:13:06]} {[%emt 00:05:37]} b6
{[%clk 01:08:26]} {[%emt 00:04:27]} 14. a3 {[%clk 01:10:54]} {[%emt 00:02:42]}
Qc7 {[%clk 00:59:48]} {[%emt 00:09:08]} 15. Ng3 {[%clk 01:08:32]} {[%emt
00:02:50]} Bg6 {[%clk 00:58:59]} {[%emt 00:01:20]} 16. e4 {[%clk 01:08:25]}
{[%emt 00:00:38]} Nf6 {[%clk 00:58:31]} {[%emt 00:00:58]} 17. Qc4 {[%clk
01:02:36]} {[%emt 00:06:19]} Rfd8 {[%clk 00:55:35]} {[%emt 00:03:25]} 18. b4
{[%clk 01:00:54]} {[%emt 00:02:12]} e5 {[%clk 00:48:31]} {[%emt 00:07:34]} 19.
d5 {[%clk 00:52:56]} {[%emt 00:08:29]} Rac8 {[%clk 00:46:24]} {[%emt 00:02:36]}
20. Bb2 {[%clk 00:50:54]} {[%emt 00:02:32]} Qd6 {[%clk 00:40:12]} {[%emt
00:06:43]} 21. Qb3 {[%clk 00:44:07]} {[%emt 00:07:16]} Nd7 {[%clk 00:32:40]}
{[%emt 00:08:02]} 22. Ba6 {[%clk 00:40:13]} {[%emt 00:04:24]} Rc7 {[%clk
00:29:53]} {[%emt 00:03:16]} 23. dxc6 {[%clk 00:33:58]} {[%emt 00:06:45]} Rxc6
{[%clk 00:28:35]} {[%emt 00:01:49]} 24. Red1 {[%clk 00:29:41]} {[%emt
00:04:46]} Qc7 {[%clk 00:26:22]} {[%emt 00:02:44]} 25. Bb5 {[%clk 00:27:56]}
{[%emt 00:02:15]} Rd6 {[%clk 00:24:08]} {[%emt 00:02:44]} 26. Rac1 {[%clk
00:22:55]} {[%emt 00:05:31]} Qb8 {[%clk 00:22:25]} {[%emt 00:02:13]} 27. Rd5
{[%clk 00:20:31]} {[%emt 00:02:54]} Rxd5 {[%clk 00:19:36]} {[%emt 00:03:20]} 28.
Qxd5 {[%clk 00:19:58]} {[%emt 00:01:03]} Nf6 {[%clk 00:17:44]} {[%emt
00:02:21]} 29. Qxe5 {[%clk 00:19:44]} {[%emt 00:00:44]} Bd6 {[%clk 00:17:11]}
{[%emt 00:01:03]} 30. Qc3 {[%clk 00:19:07]} {[%emt 00:01:07]} Bxg3 {[%clk
00:15:16]} {[%emt 00:02:25]} 31. hxg3 {[%clk 00:17:25]} {[%emt 00:02:11]} Bxe4
{[%clk 00:13:47]} {[%emt 00:02:00]} 32. Qe3 {[%clk 00:14:45]} {[%emt 00:03:09]}
Bg6 {[%clk 00:10:56]} {[%emt 00:03:21]} 33. Be5 {[%clk 00:10:37]} {[%emt
00:04:38]} Qb7 {[%clk 00:08:55]} {[%emt 00:02:32]} 34. Bc6 {[%clk 00:07:40]}
{[%emt 00:03:26]} Qe7 {[%clk 00:07:59]} {[%emt 00:01:27]} 35. Bf4 {[%clk
00:04:09]} {[%emt 00:04:01]} Qxe3 {[%clk 00:07:51]} {[%emt 00:00:38]} 36. Bxe3
{[%clk 00:04:33]} {[%emt 00:00:06]} Ng4 {[%clk 00:07:29]} {[%emt 00:00:51]} 37.
Bf4 {[%clk 00:04:22]} {[%emt 00:00:40]} h6 {[%clk 00:06:51]} {[%emt 00:01:09]}
38. Bf3 {[%clk 00:04:16]} {[%emt 00:00:36]} Nf6 {[%clk 00:05:53]} {[%emt
00:01:27]} 39. Rc7 {[%clk 00:04:20]} {[%emt 00:00:26]} a6 {[%clk 00:05:24]}
{[%emt 00:01:00]} 40. Ra7 {[%clk 00:03:30]} {[%emt 00:01:20]} Bd3 {[%clk
00:04:05]} {[%emt 00:01:49]} 41. Bc7 {[%clk 00:01:34]} {[%emt 00:02:26]} Rd7
{[%clk 00:03:35]} {[%emt 00:01:00]} 42. Ra8+ {[%clk 00:29:43]} {[%emt
00:02:21]} Kh7 {[%clk 00:33:54]} {[%emt 00:00:10]} 43. Bxb6 {[%emt 00:02:56]}
Bb5 {[%clk 00:31:46]} 44. Rd8 {[%clk 00:28:20]} {[%emt 00:02:05]} Re7 {[%clk
00:27:50]} {[%emt 00:04:26]} 45. Rd1 {[%clk 00:27:31]} {[%emt 00:01:19]} Nd7
{[%clk 00:26:29]} {[%emt 00:01:53]} 46. Be3 {[%clk 00:26:54]} {[%emt 00:01:05]}
Ne5 {[%clk 00:25:51]} {[%emt 00:01:08]} 47. Be4+ {[%clk 00:25:25]} {[%emt
00:01:59]} g6 {[%clk 00:25:34]} {[%emt 00:00:47]} 48. Bc5 {[%clk 00:24:59]}
{[%emt 00:00:55]} Re8 {[%clk 00:24:15]} {[%emt 00:01:49]} 49. Bc2 {[%clk
00:23:51]} {[%emt 00:01:38]} Ng4 {[%clk 00:21:45]} {[%emt 00:03:01]} 50. a4
{[%clk 00:20:39]} {[%emt 00:03:42]} Bc6 {[%clk 00:20:54]} {[%emt 00:01:20]} 51.
Bb3 {[%clk 00:19:16]} {[%emt 00:01:54]} Re2 {[%clk 00:17:48]} {[%emt 00:03:35]}
52. a5 {[%clk 00:17:49]} {[%emt 00:01:58]} Kg7 {[%clk 00:16:56]} {[%emt
00:01:21]} 53. Bc4 {[%clk 00:17:50]} {[%emt 00:00:30]} Rc2 {[%clk 00:15:01]}
{[%emt 00:02:25]} 54. Bxa6 {[%clk 00:17:51]} {[%emt 00:00:29]} f5 {[%clk
00:14:02]} {[%emt 00:01:28]} 55. Bd4+ {[%clk 00:16:36]} {[%emt 00:01:45]} Kf7
{[%clk 00:14:10]} {[%emt 00:00:22]} 56. Bd3 {[%clk 00:16:05]} {[%emt 00:01:01]}
1-0